[Event "Titled Tuesday Blitz May 24 Late 2022"]
[White "Golubev, Mikhail"]
[Black "Szente Varga, Fruzsina"]
[WhiteFideId "14100983"]
[BlackFideId "712264"]
[WhiteElo "2374"]
[BlackElo "1994"]
[Result "1-0"]
[Round "01"]
[TimeControl "180+1"]
[Date "2022.05.25"]
[WhiteClock "0:01:29"]
[BlackClock "0:01:30"]

1. e4 {[%clk 0:02:59]}  e5 {[%clk 0:02:59]} 2. Nf3 {[%clk 0:02:58]}  Nc6 {[%clk 0:02:59]} 3. Bb5 {[%clk 0:02:56]}  a6 {[%clk 0:02:59]} 4. Ba4 {[%clk 0:02:55]}  Nf6 {[%clk 0:02:58]} 5. O-O {[%clk 0:02:55]}  Be7 {[%clk 0:02:56]} 6. Re1 {[%clk 0:02:53]}  b5 {[%clk 0:02:56]} 7. Bb3 {[%clk 0:02:52]}  O-O {[%clk 0:02:57]} 8. a4 {[%clk 0:02:50]}  b4 {[%clk 0:02:57]} 9. d3 {[%clk 0:02:47]}  d6 {[%clk 0:02:55]} 10. Nbd2 {[%clk 0:02:46]}  Bg4 {[%clk 0:02:55]} 11. h3 {[%clk 0:02:37]}  Bxf3 {[%clk 0:02:47]} 12. Nxf3 {[%clk 0:02:34]}  Nd7 {[%clk 0:02:47]} 13. Bd5 {[%clk 0:02:33]}  Ndb8 {[%clk 0:02:45]} 14. c3 {[%clk 0:02:22]}  a5 {[%clk 0:02:44]} 15. d4 {[%clk 0:02:21]}  exd4 {[%clk 0:02:24]} 16. cxd4 {[%clk 0:02:15]}  Ra6 {[%clk 0:02:13]} 17. Be3 {[%clk 0:02:14]}  Bf6 {[%clk 0:02:08]} 18. Rc1 {[%clk 0:02:11]}  Ne7 {[%clk 0:02:08]} 19. Bc4 {[%clk 0:02:06]}  Ra8 {[%clk 0:02:06]} 20. e5 {[%clk 0:02:03]}  dxe5 {[%clk 0:02:02]} 21. dxe5 {[%clk 0:02:03]}  Nec6 {[%clk 0:01:44]} 22. exf6 {[%clk 0:01:56]}  Qxf6 {[%clk 0:01:45]} 23. Qc2 {[%clk 0:01:38]}  Nd7 {[%clk 0:01:30]} 24. Bd5 {[%clk 0:01:29]} 1-0


[Site "https://www.chess.com"]

[Event "Titled Tuesday Blitz May 24 Late 2022"]
[White "Grigoriants, Sergey"]
[Black "Hansch, Karsten"]
[WhiteFideId "4130804"]
[BlackFideId "24692239"]
[WhiteElo "2502"]
[BlackElo "2358"]
[Result "1-0"]
[Round "01"]
[TimeControl "180+1"]
[Date "2022.05.24"]
[WhiteClock "0:00:23"]
[BlackClock "0:00:07"]

1. e4 {[%clk 0:03:00]}  c6 {[%clk 0:02:59]} 2. d4 {[%clk 0:03:00]}  d5 {[%clk 0:03:00]} 3. Nc3 {[%clk 0:03:00]}  dxe4 {[%clk 0:03:00]} 4. Nxe4 {[%clk 0:03:01]}  Bf5 {[%clk 0:03:00]} 5. Ng3 {[%clk 0:03:01]}  Bg6 {[%clk 0:03:01]} 6. h4 {[%clk 0:03:02]}  h6 {[%clk 0:03:01]} 7. Nf3 {[%clk 0:03:02]}  Nd7 {[%clk 0:03:00]} 8. Bd3 {[%clk 0:03:03]}  Bxd3 {[%clk 0:03:00]} 9. Qxd3 {[%clk 0:03:04]}  e6 {[%clk 0:03:01]} 10. Bf4 {[%clk 0:03:04]}  Ngf6 {[%clk 0:03:01]} 11. O-O-O {[%clk 0:03:03]}  Be7 {[%clk 0:03:00]} 12. Kb1 {[%clk 0:02:59]}  O-O {[%clk 0:02:56]} 13. Nf1 {[%clk 0:02:59]}  c5 {[%clk 0:02:55]} 14. Qe2 {[%clk 0:02:32]}  cxd4 {[%clk 0:02:39]} 15. Nxd4 {[%clk 0:02:32]}  Qa5 {[%clk 0:02:39]} 16. Ne3 {[%clk 0:02:26]}  Rac8 {[%clk 0:02:28]} 17. g4 {[%clk 0:02:25]}  Nb6 {[%clk 0:02:03]} 18. g5 {[%clk 0:01:56]}  Nfd5 {[%clk 0:02:03]} 19. Nxd5 {[%clk 0:01:54]}  Nxd5 {[%clk 0:02:04]} 20. Bc1 {[%clk 0:01:52]}  Rfd8 {[%clk 0:01:02]} 21. gxh6 {[%clk 0:01:39]}  g6 {[%clk 0:01:02]} 22. Qf3 {[%clk 0:01:22]}  Bf6 {[%clk 0:00:57]} 23. Nb3 {[%clk 0:01:20]}  Qa6 {[%clk 0:00:53]} 24. h5 {[%clk 0:01:13]}  g5 {[%clk 0:00:43]} 25. Rhg1 {[%clk 0:01:12]}  Kh8 {[%clk 0:00:16]} 26. Bxg5 {[%clk 0:00:59]}  Bxb2 {[%clk 0:00:13]} 27. Bxd8 {[%clk 0:00:45]}  Nc3+ {[%clk 0:00:11]} 28. Kxb2 {[%clk 0:00:33]}  Qxa2+ {[%clk 0:00:11]} 29. Kc1 {[%clk 0:00:33]}  Qa3+ {[%clk 0:00:10]} 30. Kd2 {[%clk 0:00:33]}  Rxd8+ {[%clk 0:00:10]} 31. Kxc3 {[%clk 0:00:32]}  Rc8+ {[%clk 0:00:09]} 32. Kd2 {[%clk 0:00:26]}  Qb4+ {[%clk 0:00:09]} 33. c3 {[%clk 0:00:23]}  Rd8+ {[%clk 0:00:07]} 34. Kc2 {[%clk 0:00:23]} 1-0


[Site "https://www.chess.com"]

[Event "Titled Tuesday Blitz May 24 Late 2022"]
[White "Gurevich, Dmitry"]
[Black "Chyngyz, Sultai"]
[WhiteFideId "2000407"]
[BlackFideId "13803158"]
[WhiteElo "2506"]
[BlackElo "1365"]
[Result "1/2-1/2"]
[Round "01"]
[TimeControl "180+1"]
[Date "2022.05.25"]
[WhiteClock "0:00:09"]
[BlackClock "0:00:21"]

1. d4 {[%clk 0:02:58]}  Nf6 {[%clk 0:03:00]} 2. c4 {[%clk 0:02:58]}  g6 {[%clk 0:03:00]} 3. Nc3 {[%clk 0:02:57]}  Bg7 {[%clk 0:03:00]} 4. e4 {[%clk 0:02:57]}  d6 {[%clk 0:03:01]} 5. Nf3 {[%clk 0:02:57]}  O-O {[%clk 0:03:01]} 6. Be2 {[%clk 0:02:56]}  e5 {[%clk 0:03:00]} 7. O-O {[%clk 0:02:56]}  Nc6 {[%clk 0:02:59]} 8. d5 {[%clk 0:02:56]}  Ne7 {[%clk 0:03:00]} 9. Ne1 {[%clk 0:02:56]}  Nd7 {[%clk 0:03:00]} 10. Be3 {[%clk 0:02:56]}  f5 {[%clk 0:03:01]} 11. f3 {[%clk 0:02:56]}  f4 {[%clk 0:03:01]} 12. Bf2 {[%clk 0:02:56]}  g5 {[%clk 0:03:02]} 13. Nb5 {[%clk 0:02:56]}  Nf6 {[%clk 0:02:48]} 14. Nxa7 {[%clk 0:02:54]}  Bd7 {[%clk 0:02:48]} 15. Nb5 {[%clk 0:02:54]}  h5 {[%clk 0:02:47]} 16. Nc3 {[%clk 0:02:48]}  g4 {[%clk 0:02:46]} 17. Bh4 {[%clk 0:02:47]}  Ng6 {[%clk 0:02:45]} 18. Bxf6 {[%clk 0:02:43]}  Qxf6 {[%clk 0:02:46]} 19. fxg4 {[%clk 0:02:43]}  hxg4 {[%clk 0:02:44]} 20. Bxg4 {[%clk 0:02:42]}  Rad8 {[%clk 0:02:30]} 21. Bxd7 {[%clk 0:02:41]}  Rxd7 {[%clk 0:02:31]} 22. Qg4 {[%clk 0:02:40]}  Re7 {[%clk 0:02:27]} 23. Nf3 {[%clk 0:02:38]}  Bh6 {[%clk 0:02:24]} 24. h4 {[%clk 0:02:33]}  Kh7 {[%clk 0:02:23]} 25. Ng5+ {[%clk 0:02:29]}  Kh8 {[%clk 0:02:17]} 26. Qh5 {[%clk 0:02:24]}  Qg7 {[%clk 0:01:46]} 27. Ne6 {[%clk 0:02:20]}  Rxe6 {[%clk 0:01:46]} 28. dxe6 {[%clk 0:02:20]}  f3 {[%clk 0:01:47]} 29. Rxf3 {[%clk 0:02:12]}  Nf4 {[%clk 0:01:46]} 30. Rxf4 {[%clk 0:02:01]}  exf4 {[%clk 0:01:41]} 31. e7 {[%clk 0:01:56]}  Rg8 {[%clk 0:01:40]} 32. g4 {[%clk 0:01:06]}  fxg3 {[%clk 0:01:26]} 33. Rd1 {[%clk 0:00:54]}  Qf6 {[%clk 0:01:16]} 34. Rd2 {[%clk 0:00:46]}  Kh7 {[%clk 0:01:12]} 35. Nd5 {[%clk 0:00:27]}  Qg6 {[%clk 0:00:51]} 36. Qxg6+ {[%clk 0:00:25]}  Kxg6 {[%clk 0:00:52]} 37. Re2 {[%clk 0:00:16]}  Kf7 {[%clk 0:00:48]} 38. Nxc7 {[%clk 0:00:15]}  Kxe7 {[%clk 0:00:48]} 39. Kg2 {[%clk 0:00:15]}  Kd7 {[%clk 0:00:45]} 40. Nd5 {[%clk 0:00:15]}  Ke6 {[%clk 0:00:45]} 41. b4 {[%clk 0:00:13]}  Ke5 {[%clk 0:00:44]} 42. Ne7 {[%clk 0:00:10]}  Rg4 {[%clk 0:00:37]} 43. Nf5 {[%clk 0:00:09]}  Bf4 {[%clk 0:00:35]} 44. h5 {[%clk 0:00:08]}  Rg5 {[%clk 0:00:33]} 45. h6 {[%clk 0:00:08]}  Rh5 {[%clk 0:00:33]} 46. c5 {[%clk 0:00:08]}  dxc5 {[%clk 0:00:31]} 47. bxc5 {[%clk 0:00:07]}  Bxh6 {[%clk 0:00:17]} 48. Nxh6 {[%clk 0:00:06]}  Rxh6 {[%clk 0:00:18]} 49. Kxg3 {[%clk 0:00:06]}  Rc6 {[%clk 0:00:18]} 50. Rc2 {[%clk 0:00:05]}  Kxe4 {[%clk 0:00:19]} 51. Rb2 {[%clk 0:00:05]}  Kd5 {[%clk 0:00:19]} 52. Rd2+ {[%clk 0:00:04]}  Kxc5 {[%clk 0:00:19]} 53. Rc2+ {[%clk 0:00:05]}  Kb6 {[%clk 0:00:19]} 54. Rxc6+ {[%clk 0:00:06]}  Kxc6 {[%clk 0:00:19]} 55. Kf3 {[%clk 0:00:06]}  Kb5 {[%clk 0:00:20]} 56. Ke3 {[%clk 0:00:07]}  Ka4 {[%clk 0:00:20]} 57. Kd4 {[%clk 0:00:07]}  b5 {[%clk 0:00:20]} 58. Kc5 {[%clk 0:00:08]}  b4 {[%clk 0:00:21]} 59. Kc4 {[%clk 0:00:08]}  Ka3 {[%clk 0:00:21]} 60. Kb5 {[%clk 0:00:08]}  Kxa2 {[%clk 0:00:21]} 61. Kxb4 {[%clk 0:00:09]} 1/2-1/2


[Site "https://www.chess.com"]

[Event "Titled Tuesday Blitz May 24 Late 2022"]
[White "Guzman, Christopher"]
[Black "Roque Sola, Gisela"]
[WhiteFideId "6405096"]
[BlackFideId "5120241"]
[WhiteElo "2244"]
[BlackElo "1863"]
[Result "0-1"]
[Round "01"]
[TimeControl "180+1"]
[Date "2022.05.25"]
[WhiteClock "0:02:05"]
[BlackClock "0:01:32"]

1. e4 {[%clk 0:02:59]}  e6 {[%clk 0:03:00]} 2. d3 {[%clk 0:02:59]}  d5 {[%clk 0:03:00]} 3. Nd2 {[%clk 0:03:00]}  Nf6 {[%clk 0:02:58]} 4. Ngf3 {[%clk 0:03:00]}  c5 {[%clk 0:02:56]} 5. c3 {[%clk 0:02:59]}  Nc6 {[%clk 0:02:55]} 6. Be2 {[%clk 0:02:59]}  Be7 {[%clk 0:02:51]} 7. O-O {[%clk 0:02:59]}  Qc7 {[%clk 0:02:47]} 8. Re1 {[%clk 0:02:58]}  O-O {[%clk 0:02:46]} 9. a3 {[%clk 0:02:58]}  b5 {[%clk 0:02:43]} 10. Bf1 {[%clk 0:02:51]}  a5 {[%clk 0:02:42]} 11. e5 {[%clk 0:02:50]}  Nd7 {[%clk 0:02:41]} 12. d4 {[%clk 0:02:50]}  Rb8 {[%clk 0:02:33]} 13. g3 {[%clk 0:02:48]}  b4 {[%clk 0:02:15]} 14. Bd3 {[%clk 0:02:44]}  bxc3 {[%clk 0:02:13]} 15. bxc3 {[%clk 0:02:44]}  cxd4 {[%clk 0:02:11]} 16. cxd4 {[%clk 0:02:43]}  Qa7 {[%clk 0:02:07]} 17. Nf1 {[%clk 0:02:40]}  Ba6 {[%clk 0:02:04]} 18. h4 {[%clk 0:02:39]}  Bxd3 {[%clk 0:02:02]} 19. Qxd3 {[%clk 0:02:40]}  Nb6 {[%clk 0:01:58]} 20. Bg5 {[%clk 0:02:39]}  Nc4 {[%clk 0:01:55]} 21. Bxe7 {[%clk 0:02:37]}  Nxe7 {[%clk 0:01:55]} 22. N1d2 {[%clk 0:02:36]}  Nb2 {[%clk 0:01:51]} 23. Qe3 {[%clk 0:02:34]}  Nf5 {[%clk 0:01:49]} 24. Qg5 {[%clk 0:02:32]}  h6 {[%clk 0:01:47]} 25. Qg4 {[%clk 0:02:32]}  Nd3 {[%clk 0:01:43]} 26. Reb1 {[%clk 0:02:27]}  Rxb1+ {[%clk 0:01:42]} 27. Rxb1 {[%clk 0:02:27]}  Rb8 {[%clk 0:01:43]} 28. Rxb8+ {[%clk 0:02:26]}  Qxb8 {[%clk 0:01:43]} 29. h5 {[%clk 0:02:26]}  Qb2 {[%clk 0:01:41]} 30. Kg2 {[%clk 0:02:21]}  Qxa3 {[%clk 0:01:39]} 31. Qh3 {[%clk 0:02:20]}  Qc1 {[%clk 0:01:33]} 32. Qh2 {[%clk 0:02:10]}  Ne1+ {[%clk 0:01:32]} 33. Nxe1 {[%clk 0:02:08]}  Qxe1 {[%clk 0:01:33]} 34. Nf3 {[%clk 0:02:05]}  Qe4 {[%clk 0:01:32]} 0-1


[Site "https://www.chess.com"]

[Event "Titled Tuesday Blitz May 24 Late 2022"]
[White "Halak, Miklos"]
[Black "Darini, Pouria"]
[WhiteFideId "726400"]
[BlackFideId "12502200"]
[WhiteElo "2197"]
[BlackElo "2483"]
[Result "0-1"]
[Round "01"]
[TimeControl "180+1"]
[Date "2022.05.25"]
[WhiteClock "0:00:01"]
[BlackClock "0:00:18"]

1. f3 {[%clk 0:02:59]}  e5 {[%clk 0:02:57]} 2. g3 {[%clk 0:02:56]}  d5 {[%clk 0:02:55]} 3. Bg2 {[%clk 0:02:54]}  Bc5 {[%clk 0:02:56]} 4. e3 {[%clk 0:02:53]}  Nf6 {[%clk 0:02:54]} 5. Ne2 {[%clk 0:02:53]}  d4 {[%clk 0:02:52]} 6. exd4 {[%clk 0:02:44]}  exd4 {[%clk 0:02:53]} 7. d3 {[%clk 0:02:44]}  O-O {[%clk 0:02:52]} 8. O-O {[%clk 0:02:44]}  Nd5 {[%clk 0:02:52]} 9. Kh1 {[%clk 0:02:38]}  Re8 {[%clk 0:02:51]} 10. Nf4 {[%clk 0:02:35]}  Ne3 {[%clk 0:02:40]} 11. Bxe3 {[%clk 0:02:35]}  Rxe3 {[%clk 0:02:41]} 12. Nd2 {[%clk 0:02:33]}  Re8 {[%clk 0:02:41]} 13. Ne4 {[%clk 0:02:29]}  Bf8 {[%clk 0:02:39]} 14. Qd2 {[%clk 0:02:26]}  Nc6 {[%clk 0:02:35]} 15. Rae1 {[%clk 0:02:23]}  Bf5 {[%clk 0:02:34]} 16. c3 {[%clk 0:02:14]}  a5 {[%clk 0:02:30]} 17. g4 {[%clk 0:02:04]}  Bc8 {[%clk 0:02:27]} 18. Ng3 {[%clk 0:02:01]}  Bd7 {[%clk 0:02:15]} 19. Rxe8 {[%clk 0:01:58]}  Bxe8 {[%clk 0:02:12]} 20. Re1 {[%clk 0:01:53]}  g6 {[%clk 0:02:10]} 21. Qc2 {[%clk 0:01:45]}  Bh6 {[%clk 0:02:05]} 22. Nfe2 {[%clk 0:01:41]}  Bg7 {[%clk 0:02:00]} 23. Nf4 {[%clk 0:01:38]}  Qd6 {[%clk 0:01:57]} 24. Nh3 {[%clk 0:01:29]}  Bd7 {[%clk 0:01:56]} 25. c4 {[%clk 0:01:25]}  a4 {[%clk 0:01:47]} 26. Nf2 {[%clk 0:01:20]}  a3 {[%clk 0:01:45]} 27. b3 {[%clk 0:01:19]}  Qb4 {[%clk 0:01:45]} 28. Qb1 {[%clk 0:01:15]}  Re8 {[%clk 0:01:41]} 29. Rxe8+ {[%clk 0:01:14]}  Bxe8 {[%clk 0:01:42]} 30. Nfe4 {[%clk 0:01:12]}  Bd7 {[%clk 0:01:40]} 31. Kg1 {[%clk 0:01:07]}  Be5 {[%clk 0:01:39]} 32. Kf1 {[%clk 0:01:06]}  Kg7 {[%clk 0:01:37]} 33. Ke2 {[%clk 0:00:57]}  Bf4 {[%clk 0:01:36]} 34. Nf1 {[%clk 0:00:56]}  f5 {[%clk 0:01:34]} 35. gxf5 {[%clk 0:00:52]}  gxf5 {[%clk 0:01:34]} 36. Neg3 {[%clk 0:00:43]}  Kf8 {[%clk 0:01:31]} 37. Bh3 {[%clk 0:00:41]}  Ne7 {[%clk 0:01:26]} 38. Qe1 {[%clk 0:00:34]}  Qxe1+ {[%clk 0:01:25]} 39. Kxe1 {[%clk 0:00:35]}  c5 {[%clk 0:01:24]} 40. Ne2 {[%clk 0:00:31]}  Bd6 {[%clk 0:01:21]} 41. Nfg3 {[%clk 0:00:29]}  Kf7 {[%clk 0:01:20]} 42. f4 {[%clk 0:00:25]}  Kg6 {[%clk 0:01:16]} 43. Bg2 {[%clk 0:00:25]}  Nc6 {[%clk 0:01:12]} 44. Bxc6 {[%clk 0:00:24]}  Bxc6 {[%clk 0:01:13]} 45. Kf2 {[%clk 0:00:23]}  Bc7 {[%clk 0:01:11]} 46. Nf1 {[%clk 0:00:21]}  Kh5 {[%clk 0:01:10]} 47. Nfg3+ {[%clk 0:00:21]}  Kg4 {[%clk 0:01:09]} 48. h3+ {[%clk 0:00:21]}  Kxh3 {[%clk 0:01:04]} 49. Nxf5 {[%clk 0:00:20]}  Kg4 {[%clk 0:00:59]} 50. Nh6+ {[%clk 0:00:18]}  Kh5 {[%clk 0:00:58]} 51. Nf7 {[%clk 0:00:18]}  Kg6 {[%clk 0:00:55]} 52. Ng5 {[%clk 0:00:13]}  h6 {[%clk 0:00:55]} 53. Nf3 {[%clk 0:00:07]}  b6 {[%clk 0:00:49]} 54. Kg3 {[%clk 0:00:07]}  Kf6 {[%clk 0:00:45]} 55. Kg4 {[%clk 0:00:07]}  Bd7+ {[%clk 0:00:45]} 56. Kg3 {[%clk 0:00:07]}  Bf5 {[%clk 0:00:46]} 57. Ne1 {[%clk 0:00:06]}  h5 {[%clk 0:00:42]} 58. Ng1 {[%clk 0:00:04]}  Bg4 {[%clk 0:00:33]} 59. Ngf3 {[%clk 0:00:05]}  Bd6 {[%clk 0:00:34]} 60. Nh4 {[%clk 0:00:05]}  Bb8 {[%clk 0:00:34]} 61. Nhf3 {[%clk 0:00:06]}  Ke6 {[%clk 0:00:32]} 62. Nh4 {[%clk 0:00:07]}  Bd1 {[%clk 0:00:32]} 63. Nhf3 {[%clk 0:00:08]}  Kf5 {[%clk 0:00:30]} 64. Nh4+ {[%clk 0:00:07]}  Kf6 {[%clk 0:00:30]} 65. Nhf3 {[%clk 0:00:08]}  Bc7 {[%clk 0:00:30]} 66. Nh4 {[%clk 0:00:08]}  Ke6 {[%clk 0:00:23]} 67. Nhf3 {[%clk 0:00:08]}  Kd7 {[%clk 0:00:22]} 68. Nh4 {[%clk 0:00:08]}  Kc6 {[%clk 0:00:23]} 69. Nhf3 {[%clk 0:00:07]}  b5 {[%clk 0:00:23]} 70. Ng5 {[%clk 0:00:05]}  Ba5 {[%clk 0:00:23]} 71. Kf2 {[%clk 0:00:04]}  bxc4 {[%clk 0:00:18]} 72. bxc4 {[%clk 0:00:04]}  Bb3 {[%clk 0:00:16]} 73. axb3 {[%clk 0:00:02]}  Bxe1+ {[%clk 0:00:17]} 74. Kxe1 {[%clk 0:00:01]}  a2 {[%clk 0:00:18]} 0-1


[Site "https://www.chess.com"]

[Event "Titled Tuesday Blitz May 24 Late 2022"]
[White "Hasangatin, Ramil"]
[Black "Gatterer, Florian"]
[WhiteFideId "4122160"]
[BlackFideId "811688"]
[WhiteElo "2399"]
[BlackElo "2218"]
[Result "1-0"]
[Round "01"]
[TimeControl "180+1"]
[Date "2022.05.25"]
[WhiteClock "0:00:31"]
[BlackClock "0:00:04"]

1. e4 {[%clk 0:02:59]}  c5 {[%clk 0:02:59]} 2. Nf3 {[%clk 0:02:59]}  Nc6 {[%clk 0:02:58]} 3. Bb5 {[%clk 0:02:59]}  e5 {[%clk 0:02:57]} 4. c3 {[%clk 0:02:58]}  Bd6 {[%clk 0:02:54]} 5. O-O {[%clk 0:02:58]}  a6 {[%clk 0:02:51]} 6. Ba4 {[%clk 0:02:52]}  b5 {[%clk 0:02:51]} 7. Bc2 {[%clk 0:02:52]}  Nge7 {[%clk 0:02:47]} 8. d4 {[%clk 0:02:51]}  cxd4 {[%clk 0:02:26]} 9. cxd4 {[%clk 0:02:52]}  Nxd4 {[%clk 0:02:18]} 10. Nxd4 {[%clk 0:02:52]}  exd4 {[%clk 0:02:18]} 11. f4 {[%clk 0:02:46]}  Qc7 {[%clk 0:02:01]} 12. e5 {[%clk 0:02:44]}  Bc5 {[%clk 0:01:56]} 13. Be4 {[%clk 0:02:43]}  Bb7 {[%clk 0:01:51]} 14. Nd2 {[%clk 0:02:32]}  g6 {[%clk 0:01:45]} 15. Qf3 {[%clk 0:02:30]}  Nc6 {[%clk 0:01:26]} 16. Kh1 {[%clk 0:02:25]}  O-O {[%clk 0:01:25]} 17. Nb3 {[%clk 0:02:20]}  Bb6 {[%clk 0:01:22]} 18. Bd2 {[%clk 0:02:20]}  d6 {[%clk 0:01:14]} 19. Rac1 {[%clk 0:02:17]}  Rac8 {[%clk 0:01:10]} 20. Bb4 {[%clk 0:02:11]}  Rfd8 {[%clk 0:01:03]} 21. Bxd6 {[%clk 0:02:11]}  Rxd6 {[%clk 0:01:03]} 22. exd6 {[%clk 0:02:10]}  Qxd6 {[%clk 0:01:04]} 23. Rfd1 {[%clk 0:02:07]}  h5 {[%clk 0:00:48]} 24. Qh3 {[%clk 0:01:37]}  Rc7 {[%clk 0:00:39]} 25. f5 {[%clk 0:01:36]}  a5 {[%clk 0:00:31]} 26. Qg3 {[%clk 0:01:30]}  Ne5 {[%clk 0:00:18]} 27. Rxc7 {[%clk 0:01:17]}  Bxe4 {[%clk 0:00:17]} 28. Rc8+ {[%clk 0:01:11]}  Kg7 {[%clk 0:00:17]} 29. fxg6 {[%clk 0:01:11]}  fxg6 {[%clk 0:00:17]} 30. Re8 {[%clk 0:01:10]}  Bc7 {[%clk 0:00:16]} 31. Nxd4 {[%clk 0:00:50]}  h4 {[%clk 0:00:15]} 32. Qxe5+ {[%clk 0:00:45]}  Qxe5 {[%clk 0:00:14]} 33. Rxe5 {[%clk 0:00:46]}  Bxe5 {[%clk 0:00:14]} 34. Re1 {[%clk 0:00:36]}  Bxd4 {[%clk 0:00:12]} 35. Rxe4 {[%clk 0:00:36]}  Bxb2 {[%clk 0:00:12]} 36. Re7+ {[%clk 0:00:32]}  Kf6 {[%clk 0:00:12]} 37. Rb7 {[%clk 0:00:32]}  Bc3 {[%clk 0:00:08]} 38. Rxb5 {[%clk 0:00:31]}  Bb4 {[%clk 0:00:08]} 39. a4 {[%clk 0:00:31]}  g5 {[%clk 0:00:07]} 40. h3 {[%clk 0:00:29]}  Bc3 {[%clk 0:00:07]} 41. Kg1 {[%clk 0:00:29]}  Kg6 {[%clk 0:00:07]} 42. Kf1 {[%clk 0:00:29]}  Kh5 {[%clk 0:00:08]} 43. Ke2 {[%clk 0:00:30]}  Kg6 {[%clk 0:00:06]} 44. Kf3 {[%clk 0:00:30]}  Kf6 {[%clk 0:00:05]} 45. Kg4 {[%clk 0:00:31]}  Bd2 {[%clk 0:00:05]} 46. Rf5+ {[%clk 0:00:30]}  Kg6 {[%clk 0:00:04]} 47. Rd5 {[%clk 0:00:31]} 1-0


[Site "https://www.chess.com"]

[Event "Titled Tuesday Blitz May 24 Late 2022"]
[White "Ivanisevic, Ivan"]
[Black "Sibilio, Mario"]
[WhiteFideId "912417"]
[BlackFideId "800422"]
[WhiteElo "2495"]
[BlackElo "2296"]
[Result "1-0"]
[Round "01"]
[TimeControl "180+1"]
[Date "2022.05.25"]
[WhiteClock "0:00:18"]
[BlackClock "0:00:13"]

1. d4 {[%clk 0:03:00]}  Nf6 {[%clk 0:02:56]} 2. c4 {[%clk 0:03:01]}  e6 {[%clk 0:02:56]} 3. g3 {[%clk 0:03:01]}  d5 {[%clk 0:02:54]} 4. Bg2 {[%clk 0:03:01]}  dxc4 {[%clk 0:02:54]} 5. Qa4+ {[%clk 0:03:00]}  Nbd7 {[%clk 0:02:52]} 6. Nd2 {[%clk 0:02:57]}  a6 {[%clk 0:02:50]} 7. Nxc4 {[%clk 0:02:52]}  Be7 {[%clk 0:02:41]} 8. Na5 {[%clk 0:02:14]}  c6 {[%clk 0:02:34]} 9. Bd2 {[%clk 0:02:11]}  O-O {[%clk 0:02:25]} 10. Rd1 {[%clk 0:02:00]}  Qb6 {[%clk 0:02:09]} 11. Nf3 {[%clk 0:01:19]}  Qb5 {[%clk 0:02:03]} 12. Qb3 {[%clk 0:01:15]}  Ne4 {[%clk 0:01:59]} 13. Nc4 {[%clk 0:01:02]}  Nxd2 {[%clk 0:01:49]} 14. Nfxd2 {[%clk 0:01:03]}  e5 {[%clk 0:01:34]} 15. dxe5 {[%clk 0:00:55]}  Nc5 {[%clk 0:01:32]} 16. Qc2 {[%clk 0:00:50]}  Be6 {[%clk 0:01:27]} 17. O-O {[%clk 0:00:46]}  Rfd8 {[%clk 0:01:23]} 18. b3 {[%clk 0:00:46]}  a5 {[%clk 0:01:23]} 19. f4 {[%clk 0:00:39]}  a4 {[%clk 0:01:22]} 20. f5 {[%clk 0:00:36]}  axb3 {[%clk 0:01:21]} 21. axb3 {[%clk 0:00:36]}  Bxc4 {[%clk 0:01:14]} 22. bxc4 {[%clk 0:00:33]}  Qa5 {[%clk 0:01:02]} 23. f6 {[%clk 0:00:22]}  Bf8 {[%clk 0:01:00]} 24. Nf3 {[%clk 0:00:21]}  g6 {[%clk 0:00:54]} 25. Bh3 {[%clk 0:00:20]}  Bh6 {[%clk 0:00:45]} 26. Kg2 {[%clk 0:00:20]}  Be3 {[%clk 0:00:42]} 27. e6 {[%clk 0:00:19]}  Nxe6 {[%clk 0:00:37]} 28. Bxe6 {[%clk 0:00:18]}  fxe6 {[%clk 0:00:37]} 29. Qe4 {[%clk 0:00:19]}  Bh6 {[%clk 0:00:34]} 30. Qxe6+ {[%clk 0:00:18]}  Kh8 {[%clk 0:00:33]} 31. Ne5 {[%clk 0:00:18]}  Rf8 {[%clk 0:00:16]} 32. Rd7 {[%clk 0:00:18]}  Rae8 {[%clk 0:00:13]} 33. Nf7+ {[%clk 0:00:18]} 1-0


[Site "https://www.chess.com"]

[Event "Titled Tuesday Blitz May 24 Late 2022"]
[White "Keller, Peter"]
[Black "Livaic, Leon"]
[WhiteFideId "1272105"]
[BlackFideId "14531534"]
[WhiteElo "2275"]
[BlackElo "2540"]
[Result "0-1"]
[Round "01"]
[TimeControl "180+1"]
[Date "2022.05.25"]
[WhiteClock "0:00:30"]
[BlackClock "0:01:33"]

1. e4 {[%clk 0:03:00]}  c6 {[%clk 0:02:58]} 2. d4 {[%clk 0:02:57]}  d5 {[%clk 0:02:58]} 3. exd5 {[%clk 0:02:58]}  cxd5 {[%clk 0:02:59]} 4. Bd3 {[%clk 0:02:56]}  Nc6 {[%clk 0:02:59]} 5. c3 {[%clk 0:02:55]}  g6 {[%clk 0:02:59]} 6. Nf3 {[%clk 0:02:51]}  Bf5 {[%clk 0:02:58]} 7. Bxf5 {[%clk 0:02:39]}  gxf5 {[%clk 0:02:59]} 8. Bg5 {[%clk 0:02:37]}  Qd7 {[%clk 0:02:57]} 9. O-O {[%clk 0:02:22]}  e6 {[%clk 0:02:57]} 10. c4 {[%clk 0:02:11]}  Nge7 {[%clk 0:02:51]} 11. Bf6 {[%clk 0:02:06]}  Rg8 {[%clk 0:02:50]} 12. Bxe7 {[%clk 0:02:01]}  Bxe7 {[%clk 0:02:49]} 13. cxd5 {[%clk 0:01:56]}  Qxd5 {[%clk 0:02:50]} 14. Nc3 {[%clk 0:01:56]}  Qd7 {[%clk 0:02:41]} 15. d5 {[%clk 0:01:54]}  Nb4 {[%clk 0:02:37]} 16. dxe6 {[%clk 0:01:48]}  fxe6 {[%clk 0:02:38]} 17. Qb3 {[%clk 0:01:08]}  Qc6 {[%clk 0:02:37]} 18. Kh1 {[%clk 0:01:07]}  O-O-O {[%clk 0:02:20]} 19. Rfe1 {[%clk 0:01:01]}  Nd3 {[%clk 0:02:05]} 20. Qxe6+ {[%clk 0:00:44]}  Qxe6 {[%clk 0:02:05]} 21. Rxe6 {[%clk 0:00:45]}  Nxf2+ {[%clk 0:02:05]} 22. Kg1 {[%clk 0:00:46]}  Bc5 {[%clk 0:02:06]} 23. Kf1 {[%clk 0:00:46]}  Ng4 {[%clk 0:01:59]} 24. Rae1 {[%clk 0:00:44]}  f4 {[%clk 0:01:52]} 25. h3 {[%clk 0:00:44]}  Ne3+ {[%clk 0:01:52]} 26. R1xe3 {[%clk 0:00:38]}  fxe3 {[%clk 0:01:52]} 27. Re4 {[%clk 0:00:31]}  Kb8 {[%clk 0:01:39]} 28. g4 {[%clk 0:00:32]}  Rgf8 {[%clk 0:01:38]} 29. Ke2 {[%clk 0:00:32]}  Rd7 {[%clk 0:01:34]} 30. Nd1 {[%clk 0:00:30]}  Rxd1 {[%clk 0:01:33]} 0-1


[Site "https://www.chess.com"]